Workbook

Sheet 추경요약
A1: 2016학년도 소주한국학교 제2차 추가경정예산
A3: 세입 항목 | B3: 증감액 | C3: 세출 항목 | D3: 세부내역 | E3: 증감액
A4: 교육부지원금 | B4: ¥1,600,136.00 | C4: 인건비 | D4: 교직원인건비 | E4: ¥53,896.00
C5: 운영비 | D5: 학교운영비 | E5: ¥36,354.00
C6: 시설비 | D6: 교사신축비 | E6: ¥491,929.00
C7: 자산취득비 | D7: 장비구입 | E7: ¥-62,000.00
C8: 교수학습활동비 | D8: 교수학습자료구입 | E8: ¥89,586.00
D9: 교과연구회 | E9: ¥17,235.00
D10: 도서관인테리어 | E10: ¥537,000.00
D11: 체육용품기자재구입 | E11: ¥170,000.00
C12: 학생복리비 | D12: 저소득층학비지원 | E12: ¥199,559.00
D13: 방과후지원 | E13: ¥66,577.00
A14: 신축학교모금액 | B14: ¥25,309,214.00 | C14: 시설비 | D14: 교사신축비(자체) | E14: ¥25,309,214.00
A15: 입학금, 수업료 | B15: ¥-408,077.00 | C15: 학생복리비 | D15: 안전공제회비 | E15: ¥-408,077.00
A16: 수익자부담경비 | B16: ¥-1,696,271.00 | C16: 수익자부담경비 | D16: 수익자부담경비 | E16: ¥-1,696,271.00
A17: 잡수입 | B17: ¥15,955.00 | C17: 교수학습활동비 | D17: 도서관인테리어(자체) | E17: ¥221,947.00
D18: 체육용품기자재구입(자체) | E18: ¥70,295.00
C19: 일반운영비 | D19: 임차료(목적) | E19: ¥107,513.00
A20: 사용료및수수료 | B20: ¥12,500.00 | C20: 자산취득비 | D20: 학교차량구입(자체) | E20: ¥199,000.00
C21: 교무학사운영 | D21: 편입학시험관련 | E21: ¥11,000.00
A22: 과년도수입 | B22: ¥34,912.00 | D22: 졸업앨범구입 | E22: ¥5,000.00
C23: 대수선비 | D23: 임대시설 복구비용 등 시설유지관리비 | E23: ¥-538,067.00
C24: 학생복리비 | D24: 안전공제회비 | E24: ¥-13,321.00
A25: 총계 | B25: =SUM(B4:B22) -> ¥24,868,369.00 | C25: 총계 | E25: =SUM(E4:E24) -> ¥24,868,369.00

Sheet 세입_2016
A1: 2016학년도 소주한국학교 제2차 세입 추가경정예산
O2: (단위 : RMB)
A3: 세입
A4: 항 | B4: 목 | C4: 산출기초
C5: 세목 | D5: 내역 | E5: 경정예산 | F5: 증감액 | G5: 단가 | H5: 인원(기간) | K5: 횟수 | O5: 기정예산액
A6: 학부모부담수입
B7: 입학금 | C7: 입학금 | E7: =O7+F7 -> 534,000 | F7: 186,000 | G7: 6,000 | H7: * | I7: 58 | J7: 명 | K7: * | L7: 1 | M7: 회 | N7: = | O7: 348,000
B8: 소계 | E8: =SUM(E7) -> 534,000 | F8: 186,000 | G8: 6,000 | H8: 0 | I8: 58 | J8: 0 | K8: 0 | L8: 1 | M8: 0 | N8: 0 | O8: =SUM(O7) -> 348,000
B9: 수업료 | C9: 초등 | E9: =O9+F9 -> 2,065,039 | F9: -459,961 | G9: =25000 -> 25,000 | H9: * | I9: 101 | J9: 명 | K9: * | L9: 1 | M9: 년 | N9: = | O9: 2,525,000
C10: 중등 | E10: =O10+F10 -> 1,426,774 | F10: -163,226 | G10: =30000 -> 30,000 | H10: * | I10: 53 | J10: 명 | K10: * | L10: 1 | M10: 년 | N10: = | O10: 1,590,000
C11: 고등 | E11: 2,164,110 | F11: 29,110 | G11: =35000 -> 35,000 | H11: * | I11: 61 | J11: 명 | K11: * | L11: 1 | M11: 년 | N11: = | O11: 2,135,000
B12: 소계 | E12: 5,655,923 | F12: =SUM(F9:F11) -> -594,077 | G12: =SUM(G9:G11) -> 90,000 | H12: 0 | I12: 215 | J12: 0 | K12: 0 | L12: 3 | M12: 0 | N12: 0 | O12: =SUM(O9:O11) -> 6,250,000
B13: 수익자부담경비 | C13: 졸업앨범 | D13: 초등 | E13: 4,369 | F13: 4,369 | O13: 0
D14: 중등 | E14: 6,168 | F14: 6,168 | O14: 0
D15: 고등 | E15: 4,626 | F15: 4,626 | O15: 0
C16: 수학여행 | D16: 초등 | E16: =O16+F16 -> 0 | F16: -505,000 | O16: 505,000
D17: 중등 | E17: =O17+F17 -> 0 | F17: -265,000 | O17: 265,000
D18: 고등 | E18: 0 | F18: -305,000 | O18: 305,000
C19: 현장학습 | D19: 초등 | E19: =O19+F19 -> 0 | F19: -101,000 | O19: 101,000
D20: 중등 | E20: =O20+F20 -> 0 | F20: -53,000 | O20: 53,000
D21: 고등 | E21: =O21+F21 -> 0 | F21: -61,000 | O21: 61,000
C22: 중식비 | D22: 전교생 | E22: =O22+F22 -> 823,270 | F22: 32,070 | G22: 20 | H22: * | I22: 215 | J22: 명 | K22: * | L22: 184 | M22: 일 | N22: = | O22: 791,200
C23: 간식비 | D23: 전교생 | E23: =O23+F23 -> 175,547 | F23: 25,047 | G23: 5 | H23: * | I23: 215 | J23: 명 | K23: * | L23: 140 | M23: 일 | N23: = | O23: 150,500
C24: 방과후학교 | D24: 초등 | E24: 124,700 | F24: -127,800 | G24: 2,500 | H24: * | I24: 101 | J24: 명 | K24: * | L24: 1 | M24: 년 | N24: = | O24: 252,500
D25: 중등 | E25: 4,000 | F25: -128,500 | G25: 2,500 | H25: * | I25: 53 | J25: 명 | K25: * | L25: 1 | M25: 년 | N25: = | O25: 132,500
D26: 고등 | E26: 42,620 | F26: -109,880 | G26: 2,500 | H26: * | I26: 61 | J26: 명 | K26: * | L26: 1 | M26: 년 | N26: = | O26: 152,500
C27: 통학버스비 | D27: 전교생 | E27: 1,221,489 | F27: -4,871 | G27: 31 | H27: * | I27: 215 | J27: 명 | K27: * | L27: 184 | M27: 일 | N27: = | O27: 1,226,360
C28: 교재비 및 체험학습비 | D28: 전교생 | E28: 0 | F28: -107,500 | G28: 500 | H28: * | I28: 215 | J28: 명 | K28: * | L28: 1 | M28: 년 | N28: = | O28: 107,500
B29: 소계 | E29: =SUM(E13:E28) -> 2,406,789 | F29: =SUM(F13:F28) -> -1,696,271 | O29: =SUM(O16:O28) -> 4,103,060
A30: 계 | E30: =E8+E12+E29 -> 8,596,712 | F30: =E30-O30 -> -2,104,348 | O30: =O8+O12+O29 -> 10,701,060
A31: 교육부지원금
B32: 교직원인건비 | C32: 교직원인건비 | E32: =O32+F32 -> 2,170,396 | F32: 53,896 | G32: 2,116,500 | H32: * | I32: 1 | J32: 년 | K32: * | L32: 1 | M32: 회 | N32: = | O32: 2,116,500
B33: 운영비 | C33: 학교운영비 | E33: =O33+F33 -> 1,463,899 | F33: 36,354 | G33: 1,427,545 | H33: * | I33: 1 | J33: 년 | K33: * | L33: 1 | M33: 회 | N33: = | O33: 1,427,545
B34: 임차료 | C34: 건물임차료 | E34: 360,752 | F34: 0 | G34: 360,752 | K34: * | L34: 1 | M34: 회 | N34: = | O34: 360,752
B35: 시설(대수선)비 | C35: 신축경비 | E35: 12,954,929 | F35: 491,929 | G35: 12,463,000 | K35: * | L35: 1 | M35: 회 | N35: = | O35: 12,463,000
B36: 기타교육부지원금 | C36: 행정장비구입비 | E36: 0 | F36: -62,000 | G36: 62,000 | K36: * | L36: 1 | M36: 회 | N36: = | O36: 62,000
C37: 교수학습자료구입 | E37: =F37+O37 -> 89,586 | F37: 89,586 | O37: 0
C38: 교과연구회 | E38: =F38+O38 -> 17,235 | F38: 17,235 | O38: 0
C39: 저소득층학비지원 | E39: 199,559 | F39: 199,559 | O39: 0
C40: 방과후지원 | E40: 66,577 | F40: 66,577 | O40: 0
C41: 도서관인테리어 | E41: 537,000 | F41: 537,000 | O41: 0
C42: 체육용품기자재구입 | E42: 170,000 | F42: 170,000 | O42: 0
A43: 계 | E43: =SUM(E32:E42) -> 18,029,933 | F43: =E43-O43 -> 1,600,136 | O43: =SUM(O32:O36) -> 16,429,797
A44: 자체수입
B45: 사용료및수수료 | C45: 제증명수수료 | E45: =F45+O45 -> 3,500 | F45: 1,500 | G45: 5 | H45: * | I45: 400 | J45: 명 | K45: * | L45: 1 | M45: 년 | N45: = | O45: =G45*I45*L45 -> 2,000
C46: 편입학시험전형료 | E46: =F46+O46 -> 11,000 | F46: 11,000 | O46: 0
B47: 잡수입 | C47: 예적금이자 | E47: =O47+F47 -> 10,000 | F47: -10,000 | G47: 20,000 | H47: * | I47: 1 | J47: 년 | K47: * | L47: 1 | M47: 회 | N47: = | O47: =G47*I47*L47 -> 20,000
C48: 행정잡수입 | E48: =O48+F48 -> 35,955 | F48: 25,955 | G48: 10,000 | H48: * | I48: 1 | J48: 년 | K48: * | L48: 1 | M48: 회 | N48: = | O48: =G48*I48*L48 -> 10,000
A49: 계 | E49: =SUM(E45:E48) -> 60,455 | F49: =E49-O49 -> 28,455 | O49: =SUM(O45:O48) -> 32,000
A50: 기타수입
B51: 과년도수입 | C51: 과년도수입 | E51: =O51+F51 -> 52,912 | F51: 34,912 | O51: 18,000
B52: 이월금 | C52: 순세계잉여금 | E52: =O52+F52 -> 1,533,200 | G52: 1,000,000 | H52: * | I52: 1 | J52: 년 | K52: * | L52: 1 | M52: 회 | N52: = | O52: 1,533,200
B53: 적립금 | C53: 신축학교모금액 | E53: 41,224,214 | F53: 25,309,214 | G53: 15,915,000 | H53: * | I53: 1 | J53: 년 | K53: * | L53: 1 | M53: 회 | N53: = | O53: 15,915,000
A54: 계 | E54: =SUM(E51:E53) -> 42,810,326 | F54: =F51+F52+F53 -> 25,344,126 | O54: =SUM(O51:O53) -> 17,466,200
A55: 합계 | E55: =E30+E43+E49+E54 -> 69,497,426 | F55: =F54+F49+F43+F30 -> 24,868,369 | O55: =O30+O43+O49+O54 -> 44,629,057

Sheet 세출_2016
A1: 2016학년도 소주한국학교 제2차 세출 추가경정 예산
N2: (단위 : RMB)
A3: 세출
A4: 항 | B4: 목 | C4: 세항
D5: 단가 | E5: 인원 | H5: 횟수 | L5: 경정 | M5: 증감 | N5: 기정
A6: 1.인건비 | B6: 1.교원 | C6: 교원인건비 | D6: ¥13,200.00 | E6: * | F6: 17 | G6: 명 | H6: * | I6: 12 | J6: 월 | K6: = | L6: =N6+M6 -> 6,742,296 | M6: 53,896 | N6: 6,688,400
B7: 2.직원및계약교직원 | C7: 직원및계약교직원 인건비 | L7: =N7+M7 -> 970,100 | M7: 0 | N7: 970,100
A8: 계 | L8: 7,712,396 | M8: =SUM(M6:M7) -> 53,896 | N8: =SUM(N6:N7) -> 7,658,500
A9: 2.학교운영비 | B9: 1.일반운영비 | C9: 일반운영비 | D9: ¥890,000.00 | E9: * | F9: 1 | G9: 명 | H9: * | I9: 1 | J9: 년 | K9: = | L9: 1,108,954 | M9: 36,354 | N9: 1,072,600
C10: 임차료(목적) | D10: ¥890,000.00 | E10: * | F10: 1 | G10: 명 | H10: * | I10: 1 | J10: 년 | K10: = | L10: 468,265 | M10: 107,513 | N10: 360,752
B11: 소계 | L11: 1,577,219 | M11: =SUM(M9:M10) -> 143,867 | N11: =SUM(N9:N10) -> 1,433,352
B12: 2.교수학습활동비 | C12: 교수학습활동비 | L12: 738,978 | M12: 10,000 | N12: 728,978
C13: 교수학습자료구입(목적) | L13: 89,586 | M13: 89,586 | N13: 0
C14: 교과연구회비(목적) | L14: 17,235 | M14: 17,235 | N14: 0
C15: 체육용품기자재구입(목적/자체) | L15: 240,295 | M15: 240,295 | N15: 0
C16: 도서관인테리어(목적/자체) | L16: 758,947 | M16: 758,947 | N16: 0
C17: 원어민소개(헤드헌터)비 | D17: ¥60,000.00 | E17: * | F17: 1 | G17: 년 | H17: * | I17: 1 | J17: 회 | K17: = | L17: 5,000 | M17: -5,000 | N17: 10,000
B18: 소계 | L18: 1,850,041 | M18: =SUM(M12:M17) -> 1,111,063 | N18: =SUM(N12:N17) -> 738,978
B19: 3.학생복리비 | C19: 학생복리비 | D19: ¥500.00 | E19: * | F19: 1 | G19: 년 | H19: * | I19: 2 | J19: 회 | K19: = | L19: 78,602 | M19: -421,398 | N19: 500,000
C20: 방과후학교지원(목적) | L20: 199,559 | M20: 199,559
C21: 저소득층학비지원(목적) | L21: 66,577 | M21: 66,577
B22: 소계 | L22: 344,738 | M22: =SUM(M19:M21) -> -155,262 | N22: =SUM(N19:N21) -> 500,000
B23: 4.업무추진비 | C23: 업무추진비 | D23: ¥20.00 | E23: * | F23: 50 | G23: 명 | H23: * | I23: 5 | J23: 회 | K23: = | L23: 106,500 | M23: 0 | N23: 106,500
B24: 소계 | L24: 106,500 | M24: =M23 -> 0 | N24: =SUM(N23) -> 106,500
A25: 계 | L25: 3,878,498 | M25: =M24+M22+M18+M11 -> 1,099,668 | N25: =N11+N18+N22+N24 -> 2,778,830
A26: 3.자산취득비 | B26: 1.자산취득비 | C26: 교육부지원장비구입(목적) | D26: ¥4,000.00 | E26: * | F26: 6 | G26: 실 | H26: * | I26: 1 | J26: 회 | K26: = | L26: 0 | M26: -62,000 | N26: 62,000
C27: 신축학교 비품 구입 | D27: ¥800.00 | E27: * | F27: 9 | G27: 개 | H27: * | I27: 1 | J27: 회 | K27: = | L27: 330,503 | M27: 0 | N27: 330,503
C28: 학교차량구입(목적) | D28: ¥500.00 | E28: * | F28: 9 | G28: 개 | H28: * | I28: 1 | J28: 회 | K28: = | L28: 66,164 | M28: 0 | N28: 66,164
C29: 학교차량구입(자체) | D29: ¥550.00 | E29: * | F29: 9 | G29: 개 | H29: * | I29: 2 | J29: 회 | K29: = | L29: 379,000 | M29: 199,000 | N29: 180,000
A30: 계 | L30: 775,667 | M30: =SUM(M26:M29) -> 137,000 | N30: =SUM(N26:N29) -> 638,667
A31: 4.시설(대수선)비 | B31: 1.시설비 | C31: 교사신축비(교육부) | L31: 12,954,929 | M31: 491,929 | N31: 12,463,000
C32: 교사신축비(자체) | D32: =2500000-144000 -> ¥2,356,000.00 | E32: * | F32: 1 | G32: 년 | H32: * | I32: 1 | J32: 회 | K32: = | L32: 41,224,214 | M32: 25,309,214 | N32: 15,915,000
B33: 소계 | L33: 54,179,143 | M33: =SUM(M31:M32) -> 25,801,143 | N33: =SUM(N31:N32) -> 28,378,000
B34: 2.대수선비 | C34: 임대시설 복구비용 등 시설유지관리비 | D34: ¥25,000.00 | E34: * | F34: 1 | G34: 년 | H34: * | I34: 1 | J34: 회 | K34: = | L34: 461,933 | M34: -538,067 | N34: 1,000,000
C35: 소규모수선 등 시설유지비 | D35: ¥25,000.00 | E35: * | F35: 1 | G35: 년 | H35: * | I35: 1 | J35: 회 | K35: = | L35: 60,000 | M35: 0 | N35: 60,000
C36: 공구 등 시설유지물품구입 | D36: ¥25,000.00 | E36: * | F36: 1 | G36: 년 | H36: * | I36: 1 | J36: 회 | K36: = | L36: 12,000 | M36: 0 | N36: 12,000
B37: 소계 | L37: 533,933 | M37: =SUM(M34:M36) -> -538,067 | N37: =SUM(N34:N36) -> 1,072,000
A38: 계 | L38: 54,713,076 | M38: =M37+M33 -> 25,263,076 | N38: =N33+N37 -> 29,450,000
A39: 5.수익자부담경비 | B39: 1.현장학습비 | C39: 수학여행비 | L39: 0 | M39: -1,075,000 | N39: 1,075,000
C40: 현장학습비 | D40: ¥1,000.00 | E40: * | F40: 70 | G40: 명 | H40: * | I40: 1 | J40: 회 | K40: = | L40: 0 | M40: -215,000 | N40: 215,000
B41: 소계 | L41: 0 | M41: =SUM(M39:M40) -> -1,290,000 | N41: =SUM(N39:N40) -> 1,290,000
B42: 2.학교급식비 | C42: 중식비 | D42: ¥20.00 | E42: * | F42: 120 | G42: 명 | H42: * | I42: 190 | J42: 일 | K42: = | L42: 823,270 | M42: 32,070 | N42: 791,200
C43: 간식비 | D43: ¥5.00 | E43: * | F43: 120 | G43: 명 | H43: * | I43: 152 | J43: 일 | K43: = | L43: 175,547 | M43: 25,047 | N43: 150,500
B44: 소계 | L44: 998,817 | M44: =SUM(M42:M43) -> 57,117 | N44: =SUM(N42:N43) -> 941,700
B45: 3.방과후학교교육활동비 | C45: 방과후학교 | D45: ¥1,000.00 | E45: * | F45: 70 | G45: 명 | H45: * | I45: 2 | J45: 회 | K45: = | L45: 171,320 | M45: -366,180 | N45: 537,500
B46: 소계 | L46: 171,320 | M46: =M45 -> -366,180 | N46: =N45 -> 537,500
B47: 4.기타수익자부담경비 | C47: 통학버스비 | D47: ¥30.00 | E47: * | F47: 120 | G47: 명 | H47: * | I47: 190 | J47: 일 | K47: = | L47: 1,221,489 | M47: -4,871 | N47: 1,226,360
C48: 교재및체험비 | D48: ¥500.00 | E48: * | F48: 70 | G48: 명 | H48: * | I48: 2 | J48: 회 | K48: = | L48: 0 | M48: -107,500 | N48: 107,500
C49: 편입학시험관련 | L49: 11,000 | M49: 11,000
C50: 졸업앨범비 | L50: 15,163 | M50: 15,163 | N50: 0
B51: 소계 | L51: 1,247,652 | M51: =SUM(M47:M50) -> -86,208 | N51: =SUM(N47:N50) -> 1,333,860
A52: 계 | L52: 2,417,789 | M52: =M51+M46+M44+M41 -> -1,685,271 | N52: =N41+N44+N46+N51 -> 4,103,060
A53: 6.예비비및기타 | B53: 1.예비비 | C53: 예비비 | L53: 0 | M53: 0 | N53: 0
B54: 2.반환금 | C54: 목적경비반환 | L54: 0 | M54: 0 | N54: 0
B55: 3.적립금 | C55: 시설보수적립금 | L55: 0 | M55: 0 | N55: 0
B56: 4.환차손 | C56: 환차손 | L56: 0 | M56: 0 | N56: 0
A57: 계 | L57: 0 | M57: =SUM(M53:M56) -> 0 | N57: =SUM(N53:N56) -> 0
A58: 합 계 | L58: 69,497,426 | M58: =M57+M52+M38+M30+M25+M8 -> 24,868,369 | N58: =N8+N25+N30+N38+N52+N57 -> 44,629,057
